bitfinex-derivatives/quotes_SOLF0:USTF0_20250212
["timestamp","ask_amount","ask_price","bid_price","bid_amount"]
[1739367502779,38.77256248,190.0,189.89,78.27839]
[1739367503079,104.16,190.07,189.89,78.27839]
[1739367503281,6.1912,190.19,189.92,38.77256248]
[1739367503578,38.77256248,190.13,189.92,38.77256248]
[1739367503774,6.1912,190.19,189.92,38.77256248]
[1739367503775,38.77256248,190.09,189.92,38.77256248]
[1739367503980,38.77256248,190.01,189.89,78.27839]
[1739367504179,38.77256248,189.97,189.89,78.27839]
[1739367504372,38.77256248,190.01,189.89,78.27839]
[1739367504577,38.77256248,190.06,189.93,0.03885228]
[1739367504777,38.77256248,190.14,189.97,38.77256248]
[1739367504982,38.77256248,190.06,189.93,0.03885228]
[1739367505177,38.77256248,190.06,189.9,3.1786]
[1739367505383,38.77256248,190.02,189.89,78.27839]
[1739367505586,38.77256248,189.98,189.89,78.27839]
[1739367505977,38.77256248,190.02,189.94,0.03929255]
[1739367506181,0.03605829,189.95,189.94,0.03929255]
[1739367506478,38.77256248,190.0,189.89,78.27839]
[1739367506682,38.77256248,190.1,189.92,38.77256248]
[1739367506881,38.77256248,190.14,189.98,5.2639]
[1739367507075,11.3605,190.19,189.9,41.91596248]
[1739367507076,0.0889,190.28,190.0,38.77256248]
[1739367507376,38.77256248,190.12,189.96,38.77256248]
[1739367507580,38.80831943,190.12,190.08,0.03770277]
[1739367507885,38.80831943,190.12,189.9,3.1434]
[1739367508080,38.77256248,190.04,189.9,3.1434]
[1739367508481,38.77256248,190.1,189.9,41.91596248]
[1739367508676,38.77256248,190.14,189.98,38.77256248]
[1739367508881,1.05191184,190.13,189.94,38.77256248]
[1739367509082,0.03618236,190.02,189.98,0.0333936]
[1739367509480,38.77256248,190.06,189.9,3.1434]
[1739367509980,38.77256248,189.91,189.7,38.77256248]
[1739367510184,38.77256248,189.91,189.64,3.028]
[1739367510185,38.77256248,189.79,189.64,3.028]
[1739367510579,38.77256248,189.83,189.64,3.028]
[1739367511182,38.77256248,189.79,189.64,41.80056248]
[1739367511383,0.03534348,189.75,189.72,0.03719001]
[1739367512083,38.77256248,189.73,189.5,38.77256248]
[1739367512382,38.77256248,189.59,189.42,38.77256248]
[1739367512585,38.77256248,189.7,189.42,38.77256248]
[1739367512788,104.24,189.74,189.46,38.77256248]
[1739367512789,38.77256248,189.67,189.46,38.77256248]
[1739367513088,38.77256248,189.63,189.47,5.278]
[1739367513283,38.77256248,189.59,189.41,6.1852]
[1739367513484,0.03993644,189.58,189.55,0.03399099]
[1739367513781,38.77256248,189.59,189.41,3.028]
[1739367513988,38.77256248,189.58,189.43,5.2791]
[1739367514192,38.77256248,189.62,189.46,38.77256248]
[1739367514385,38.77256248,189.62,189.41,3.028]
[1739367514584,38.77256248,189.58,189.41,3.028]
[1739367514983,38.77256248,189.6,189.41,3.028]
[1739367514984,38.77256248,189.54,189.41,3.028]
[1739367515185,0.03710322,189.51,189.48,0.03573871]
[1739367515688,38.77256248,189.6,189.41,3.028]
[1739367515885,38.77256248,189.6,189.44,38.77256248]
[1739367516090,0.0334158,189.51,189.48,0.03378114]
[1739367516489,38.77256248,189.56,189.41,3.028]
[1739367516882,0.0341809,189.51,189.48,0.03730535]
[1739367517404,38.77256248,189.64,189.5,5.2771]
[1739367517589,38.77256248,189.6,189.48,0.03730535]
[1739367517786,38.77256248,189.6,189.44,38.77256248]
[1739367517991,38.77256248,189.64,189.49,5.2773]
[1739367518182,38.77256248,189.64,189.48,38.77256248]
[1739367518386,38.77256248,189.64,189.44,38.77256248]
[1739367518590,38.77256248,189.6,189.44,38.77256248]
[1739367518897,0.03524109,189.58,189.54,0.03332944]
[1739367519083,0.03524109,189.58,189.41,3.028]
[1739367519084,38.77256248,189.72,189.5,38.77256248]
[1739367519285,0.1069,189.89,189.6,38.77256248]
[1739367519492,5.2677,189.85,189.69,5.2719]
[1739367519688,5.2677,189.85,189.64,38.77256248]
[1739367519689,38.77256248,189.84,189.64,38.77256248]
[1739367519891,2.827e-05,189.72,189.68,38.77256248]
[1739367520085,2.827e-05,189.72,189.64,38.77256248]
[1739367520394,38.77256248,189.76,189.62,6.485]
[1739367520785,38.77256248,189.84,189.64,38.77256248]
[1739367520989,38.77256248,189.84,189.68,38.77256248]
[1739367521291,38.77256248,189.92,189.76,38.77256248]
[1739367521490,38.77256248,190.0,189.8,38.77256248]
[1739367521694,38.77256248,189.91,189.72,38.77256248]
[1739367521885,38.77256248,189.82,189.65,38.77256248]
[1739367522081,38.77256248,189.86,189.65,38.77256248]
[1739367522280,5.2678,189.85,189.8,0.03438335]
[1739367522493,38.77256248,189.9,189.8,0.03438335]
[1739367522691,38.77256248,189.9,189.73,38.77256248]
[1739367522886,0.0357601,189.84,189.77,5.2696]
[1739367523082,38.77256248,189.9,189.66,3.0417]
[1739367523083,38.77256248,189.98,189.81,38.77256248]
[1739367523287,38.77256248,189.98,189.83,0.03804633]
[1739367523584,38.77256248,189.94,189.82,3.1567]
[1739367523787,38.77256248,189.9,189.82,3.1567]
[1739367524094,38.77256248,189.86,189.64,3.1567]
[1739367524387,38.77256248,189.77,189.64,3.1567]
[1739367524583,38.77256248,189.8,189.64,3.1567]
[1739367524983,38.77256248,189.74,189.69,0.03888806]
[1739367525188,38.77256248,189.82,189.69,0.03888806]
[1739367525391,6.065e-05,189.74,189.72,38.77256248]
[1739367525595,5.2638,189.99,189.82,5.2682]
[1739367525792,38.77256248,190.0,189.77,38.77256248]
[1739367525990,38.77256248,189.92,189.77,38.77256248]
[1739367526192,38.77256248,189.88,189.73,38.77256248]
[1739367526488,38.77256248,189.8,189.64,3.1567]
[1739367526689,38.77256248,189.76,189.64,3.1567]
[1739367526891,38.77256248,189.76,189.5,38.77256248]
[1739367526892,38.77256248,189.68,189.5,38.77256248]
[1739367527090,38.77256248,189.68,189.51,2.9843]
[1739367527291,38.77256248,189.61,189.4,38.77256248]
[1739367527493,38.77256248,189.57,189.4,38.77256248]
[1739367527994,1.012e-05,189.52,189.49,0.03717965]
[1739367528188,5.2737,189.63,189.49,0.03717965]
[1739367528392,38.77256248,189.64,189.49,0.03717965]
[1739367528598,38.77256248,189.64,189.43,38.77256248]
[1739367528788,44.04606248,189.64,189.48,5.2777]
[1739367528992,38.77256248,189.7,189.51,38.77256248]
[1739367529394,38.77256248,189.74,189.55,38.77256248]
[1739367529591,38.77256248,189.78,189.59,0.03804012]
[1739367529789,38.77256248,189.82,189.63,38.77256248]
[1739367530000,38.77256248,189.86,189.71,38.77256248]
[1739367530491,38.77256248,189.94,189.79,38.77256248]
[1739367530797,38.77256248,189.91,189.8,3.0702]
[1739367531091,90.97745619,190.0,189.8,3.0702]
[1739367531297,90.97745619,190.0,189.82,38.77256248]
[1739367531492,1.715e-05,189.87,189.86,38.77256248]
[1739367531800,52.20489371,190.0,189.89,0.0375444]
[1739367532099,52.20489371,190.0,189.84,38.77256248]
[1739367532597,52.20489371,190.0,189.87,38.77256248]
[1739367532796,44.83929,190.02,189.93,38.77256248]
[1739367532998,0.1415,190.29,190.0,77.54512496]
[1739367533299,38.77256248,190.16,189.99,38.77256248]
[1739367533489,38.77256248,190.12,189.95,38.77256248]
[1739367533691,38.77256248,189.98,189.81,38.77256248]
[1739367533896,38.77256248,189.95,189.78,38.77256248]
[1739367534097,38.77256248,190.06,189.86,38.77256248]
[1739367534297,5.263,190.02,189.86,38.77256248]
[1739367534594,5.263,190.02,189.7,38.77256248]
[1739367534595,38.77256248,189.89,189.72,38.77256248]
[1739367534894,38.77256248,190.0,189.76,38.77256248]
[1739367535097,38.77256248,190.0,189.8,38.77256248]
[1739367535397,38.77256248,189.96,189.8,38.77256248]
[1739367535588,1.05257618,190.01,189.84,38.77256248]
[1739367535795,1.05257618,190.01,189.88,38.77256248]
[1739367536094,1.05257618,190.01,189.92,38.77256248]
[1739367536300,1.05257618,190.01,189.9,38.77256248]
[1739367536599,38.77256248,190.11,189.93,0.0336792]
[1739367536800,38.77256248,190.07,189.93,0.0336792]
[1739367536998,0.03437222,189.97,189.93,0.0336792]
[1739367537202,38.77256248,190.1,189.93,38.77256248]
[1739367537401,38.77256248,190.22,190.01,38.77256248]
[1739367537597,1.05146942,190.21,190.05,38.77256248]
[1739367537904,1.05146942,190.21,190.06,38.77256248]
[1739367538297,1.05146942,190.21,190.1,38.77256248]
[1739367538506,90.97745619,190.31,190.14,38.77256248]
[1739367538711,92.02837311,190.31,190.14,38.77256248]
[1739367538902,53.25581063,190.31,190.16,38.77256248]
[1739367539209,52.20489371,190.31,190.16,38.77256248]
[1739367539715,38.77256248,190.31,190.13,38.77256248]
[1739367540104,52.20489371,190.53,190.27,38.77256248]
[1739367540413,5.2491,190.52,190.31,38.77256248]
[1739367540607,38.77256248,190.46,190.31,38.77256248]
[1739367540914,38.77256248,190.46,190.27,38.77256248]
[1739367541110,55.34019371,190.53,190.35,38.77256248]
[1739367541314,52.20489371,190.53,190.39,38.77256248]
[1739367542015,52.20489371,190.53,190.46,38.77256248]
[1739367542216,0.03700059,190.48,190.46,38.77256248]
[1739367542412,52.20489371,190.82,190.46,38.77256248]
[1739367542716,52.20489371,190.82,190.61,38.77256248]
[1739367542717,38.77256248,190.78,190.61,38.77256248]
[1739367542915,3.1268,190.79,190.65,38.77256248]
[1739367543215,41.89936248,190.79,190.61,38.77256248]
[1739367543408,5.2423,190.77,190.61,38.77256248]
[1739367543609,3.1268,190.79,190.68,0.03456788]
[1739367543810,52.20489371,190.82,190.68,0.03456788]
[1739367544011,52.20489371,190.82,190.69,38.77256248]
[1739367544416,52.20489371,190.82,190.73,38.77256248]
[1739367544613,52.20489371,190.82,190.74,0.03414175]
[1739367544816,38.77256248,190.75,190.52,38.77256248]
[1739367545018,38.77256248,190.75,190.56,38.77256248]
[1739367545214,5.2436,190.72,190.64,38.77256248]
[1739367545413,0.03698452,190.8,190.64,38.77256248]
[1739367545612,38.77256248,190.8,190.6,38.77256248]
[1739367545815,5.2425,190.76,190.6,38.77256248]
[1739367546011,38.77256248,190.8,190.6,38.77256248]
[1739367546208,0.03449791,190.72,190.69,38.77256248]
[1739367546412,52.20489371,190.82,190.7,38.77256248]
[1739367546618,38.77256248,190.96,190.76,38.77256248]
[1739367546809,38.77256248,190.96,190.8,38.77256248]
[1739367547416,5.2376,190.94,190.8,38.77256248]
[1739367547618,38.77256248,190.96,190.76,38.77256248]
[1739367547819,38.77256248,190.96,190.86,0.0336834]
[1739367548120,38.77256248,190.96,190.69,38.77256248]
[1739367548121,38.77256248,190.88,190.68,38.77256248]
[1739367548314,38.77256248,190.84,190.64,38.77256248]
[1739367548918,38.77256248,190.8,190.61,3.0902]
[1739367549116,5.2439,190.71,190.56,38.77256248]
[1739367549413,0.03664294,190.72,190.69,0.03704041]
[1739367549620,38.77256248,190.7,190.52,38.77256248]
[1739367550023,38.77256248,190.66,190.48,38.77256248]
[1739367550210,5.2476,190.58,190.44,38.77256248]
[1739367550414,38.77256248,190.57,190.4,38.77256248]
[1739367551023,0.03675792,190.5,190.47,0.03541353]
[1739367551423,38.77256248,190.48,190.3,95.61007808]
[1739367551619,38.77256248,190.44,190.3,95.61007808]
[1739367551818,38.77256248,190.44,190.3,56.8375156]
[1739367552120,38.77256248,190.4,190.12,103.98]
[1739367552323,3.2773,190.49,190.13,3.1763]
[1739367552324,38.77256248,190.36,190.13,3.1763]
[1739367552517,38.77256248,190.32,190.13,3.1763]
[1739367552717,5.2547,190.32,190.18,38.77256248]
[1739367552911,0.03915629,190.3,190.26,0.03714232]
[1739367553114,3.2195,190.49,190.26,38.8097048]
[1739367553317,5.2503,190.48,190.34,38.77256248]
[1739367553517,6.3777,190.59,190.38,38.77256248]
[1739367553718,38.77256248,190.56,190.38,38.77256248]
[1739367553913,38.77256248,190.64,190.4,38.77256248]
[1739367554119,3.2195,190.69,190.54,38.77256248]
[1739367554319,5.2447,190.68,190.54,44.02086248]
[1739367554622,38.77256248,190.74,190.54,38.77256248]
[1739367554816,38.77256248,190.77,190.62,38.77256248]
[1739367555014,3.2195,190.78,190.5,38.8084337]
[1739367555015,3.2195,190.78,190.66,38.77256248]
[1739367555220,3.2195,190.78,190.6,38.77256248]
[1739367555419,38.77256248,190.83,190.6,38.77256248]
[1739367555420,0.03848946,190.71,190.69,38.77256248]
[1739367555622,38.77256248,190.91,190.69,38.77256248]
[1739367555824,38.77256248,190.88,190.71,38.77256248]
[1739367556023,38.77256248,190.85,190.68,38.77256248]
[1739367556220,38.77256248,190.92,190.75,38.77256248]
[1739367556421,38.77256248,191.1,190.87,38.77256248]
[1739367556628,3.2334,191.09,190.91,38.77256248]
[1739367557021,3.2334,191.09,190.82,0.03380082]
[1739367557022,38.77256248,191.02,190.83,38.77256248]
[1739367557526,0.03145113,190.95,190.91,38.77256248]
[1739367557826,0.03145113,190.95,190.88,0.03886176]
[1739367558023,39.57645848,191.09,190.88,0.03886176]
[1739367558223,39.57645848,190.99,190.88,0.03886176]
[1739367558418,0.03145113,190.93,190.73,39.57645848]
[1739367558624,0.03145113,190.93,190.78,39.57645848]
[1739367558929,12.8112,191.08,190.92,0.03488344]
[1739367559230,1.04673679,191.07,190.88,39.57645848]
[1739367559429,1.04673679,191.07,190.83,39.57645848]
[1739367559624,5.2351,191.03,190.98,0.03524021]
[1739367559825,0.03145113,190.99,190.98,0.03524021]
[1739367560121,5.2372,190.95,190.83,44.81675848]
[1739367560421,39.57645848,191.04,190.78,39.57645848]
[1739367560625,0.03145113,190.91,190.73,39.57645848]
[1739367560825,5.2387,190.9,190.73,39.57645848]
[1739367561022,39.57645848,190.94,190.72,3.2349]
[1739367561221,39.57645848,190.94,190.73,39.57645848]
[1739367561222,3.2527,190.93,190.73,39.57645848]
[1739367561722,3.2527,190.93,190.68,39.57645848]
[1739367561930,0.03579368,190.85,190.63,39.57645848]
[1739367562122,0.03579368,190.85,190.63,40.62561128]
[1739367562421,5.2427,190.75,190.63,40.62561128]
[1739367562626,39.57645848,190.79,190.63,1.0491528]
[1739367563127,39.57645848,190.74,190.63,1.0491528]
[1739367563323,3.2910339,190.73,190.69,0.03852237]
[1739367563523,5.2436,190.72,190.69,0.03852237]
[1739367563719,3.2910339,190.73,190.69,0.03852237]
[1739367563922,0.0348339,190.73,190.69,0.03852237]
[1739367565027,39.57645848,190.95,190.69,0.03852237]
[1739367565227,3.2562,190.97,190.79,39.57645848]
[1739367565622,3.2562,190.97,190.74,39.57645848]
[1739367565827,39.57645848,190.96,190.69,39.57645848]
[1739367566030,39.57645848,190.91,190.64,39.57645848]
[1739367566327,0.03758198,190.84,190.64,39.57645848]
[1739367566530,0.03758198,190.84,190.69,39.57645848]
[1739367566724,39.57645848,190.91,190.64,39.57645848]
[1739367566931,39.57645848,190.96,190.74,39.57645848]
[1739367567127,39.57645848,190.91,190.69,39.57645848]
[1739367567333,3.2091,190.9,190.67,5.2448]
[1739367567529,39.57645848,190.73,190.48,28.14642815]
[1739367567728,6.4032,190.72,190.48,28.14642815]
[1739367568036,39.57645848,190.67,190.48,29.19640715]
[1739367568335,39.57645848,190.67,190.59,0.03437974]
[1739367568528,6.3082,190.71,190.59,0.03437974]
[1739367568926,0.03461095,190.65,190.59,0.03437974]
[1739367569128,0.03461095,190.65,190.48,29.19640715]
[1739367569838,39.57645848,190.62,190.55,0.03470709]
[1739367570030,5.2479,190.56,190.55,0.03470709]
[1739367570428,39.57645848,190.57,190.48,1.049979]
[1739367570629,0.03628631,190.58,190.3,3.0832]
[1739367570630,39.57645848,190.52,190.3,3.0832]
[1739367570934,39.57645848,190.52,190.31,1.05091692]
[1739367571134,6.4089,190.55,190.37,39.57645848]
[1739367571329,0.03384586,190.43,190.39,0.0382775]
[1739367571534,6.3082,190.71,190.39,0.0382775]
[1739367571535,39.57645848,190.68,190.42,39.57645848]
[1739367571730,39.57645848,190.63,190.37,39.57645848]
[1739367572029,39.57645848,190.58,190.32,39.57645848]
[1739367572238,39.57645848,190.58,190.38,1.05053051]
[1739367572536,39.57645848,190.53,190.38,1.05053051]
[1739367572730,0.03643892,190.5,190.46,0.03357624]
[1739367572927,0.03643892,190.5,190.27,39.57645848]
[1739367573133,0.03643892,190.5,190.32,39.57645848]
[1739367573328,39.57645848,190.53,190.33,1.05080649]
[1739367573638,39.57645848,190.48,190.33,1.05080649]
[1739367573933,3.2466,190.57,190.33,1.05080649]
[1739367574138,3.2466,190.57,190.37,39.57645848]
[1739367574327,3.2466,190.57,190.39,0.03357559]
[1739367574836,3.2466,190.57,190.38,3.2546]
[1739367575139,39.57645848,190.63,190.38,3.2546]
[1739367575430,39.57645848,190.58,190.32,39.57645848]
[1739367575635,0.03502381,190.52,190.27,39.57645848]
[1739367575834,0.03502381,190.52,190.32,39.57645848]
[1739367576139,1.04920784,190.62,190.37,39.57645848]
[1739367576933,0.03546255,190.51,190.48,0.03795082]
[1739367577437,1.04920784,190.62,190.37,39.57645848]
[1739367577638,38.69855522,190.59,190.41,43.95055522]
[1739367577934,1.04920784,190.62,190.49,38.69855522]
[1739367578139,5.2467,190.61,190.49,38.69855522]
[1739367578334,1.04931794,190.6,190.46,38.69855522]
[1739367578539,1.04931794,190.6,190.42,2.9968]
[1739367578540,39.74787316,190.6,190.42,2.9968]
[1739367578743,1.04931794,190.6,190.48,38.69855522]
[1739367578935,1.04931794,190.6,190.55,38.69855522]
[1739367579136,1.04931794,190.6,190.58,38.69855522]
[1739367579338,1.04931794,190.6,190.58,43.94585522]
[1739367579636,1.04931794,190.6,190.55,38.69855522]
[1739367579832,5.2429,190.75,190.59,38.69855522]
[1739367580030,1.04854776,190.74,190.68,38.69855522]
[1739367580231,1.04854776,190.74,190.65,38.69855522]
[1739367580632,1.04854776,190.74,190.72,38.69855522]
[1739367580931,2.73e-06,190.73,190.72,38.69855522]
[1739367581132,1.04766893,190.9,190.7,77.39711044]
[1739367581338,1.04766893,190.9,190.84,38.69855522]
[1739367581536,1.04766893,190.9,190.78,38.69855522]
[1739367581737,0.03750308,190.82,190.72,38.69855522]
[1739367582040,6.28926309,190.81,190.64,38.69855522]
[1739367582233,1.04816309,190.81,190.64,38.69855522]
[1739367582431,0.03518836,190.74,190.71,0.04019358]
[1739367582834,0.03518836,190.74,190.73,21.37186577]
[1739367583039,38.69855522,190.79,190.73,21.37186577]
[1739367583232,38.73613048,190.75,190.73,21.37186577]
[1739367583436,43.97903048,190.75,190.73,21.37186577]
[1739367583638,42.5816039,190.75,190.73,21.37186577]
[1739367583837,5.2438,190.71,190.7,85.48746308]
[1739367584037,38.69855522,190.71,190.68,139.88715834]
[1739367584341,38.69855522,190.7,190.68,51.55396264]
[1739367584539,38.69855522,190.7,190.66,66.34137005]
[1739367584732,38.69855522,190.7,190.66,37.77007005]
[1739367585041,77.39711044,190.7,190.54,7.12593931]
[1739367585338,38.73767684,190.7,190.66,0.03686093]
[1739367585538,0.03912162,190.7,190.58,38.69855522]
[1739367585745,3.0585,190.89,190.66,38.69855522]
[1739367585746,38.69855522,190.83,190.66,38.69855522]
[1739367586041,5.2442,190.7,190.66,0.04033815]
[1739367586245,38.69855522,190.74,190.66,0.04033815]
[1739367586439,38.69855522,190.7,190.54,7.12593931]
[1739367586739,38.69855522,190.66,190.51,6.3256]
[1739367586933,38.69855522,190.66,190.6,0.03939306]
[1739367587133,0.03570694,190.64,190.6,0.03939306]
[1739367587539,53.1068658,190.63,190.61,38.69855522]
[1739367587738,39.3635658,190.63,190.62,5.19965463]
[1739367587939,64.8231987,190.65,190.61,38.69855522]
[1739367588142,141.67797426,190.68,190.61,38.69855522]
[1739367588439,154.38918397,190.7,190.67,43.94345522]
[1739367588743,38.69855522,190.8,190.63,38.69855522]
[1739367589040,132.97181627,190.83,190.67,38.69855522]
[1739367589243,132.97181627,190.83,190.71,38.69855522]
[1739367589440,0.03305501,190.73,190.71,38.69855522]
[1739367589835,38.69855522,190.82,190.67,38.69855522]
[1739367590037,38.69855522,190.79,190.62,38.69855522]
[1739367590237,5.27808554,190.74,190.7,0.03482202]
[1739367590440,38.69855522,190.72,190.7,0.03482202]
[1739367590646,38.69855522,190.72,190.69,7.14414069]
[1739367591447,38.69855522,190.8,190.69,7.14414069]
[1739367591747,5.2426,190.76,190.69,7.14414069]
[1739367592045,38.73853096,190.76,190.73,0.03981941]
[1739367592245,0.03997574,190.76,190.73,0.03981941]
[1739367593344,38.69855522,190.93,190.74,38.69855522]
[1739367593950,38.69855522,190.93,190.78,38.69855522]
[1739367594248,38.69855522,190.97,190.78,38.69855522]
[1739367594442,38.69855522,191.01,190.82,38.69855522]
[1739367594641,38.69855522,191.01,190.78,7.14414069]
[1739367594642,0.03513709,190.89,190.86,0.0379779]
[1739367595145,38.69855522,190.91,190.78,7.14414069]
[1739367595344,38.69855522,190.87,190.78,7.14414069]
[1739367595551,0.03415871,190.89,190.78,7.14414069]
[1739367595742,38.69855522,190.87,190.81,0.03699384]
[1739367596148,0.03685626,190.85,190.81,0.03699384]
[1739367596849,5.2407,190.83,190.81,0.03699384]
[1739367597249,43.93925522,190.83,190.81,0.03699384]
[1739367597451,38.69855522,190.83,190.7,7.14414069]
[1739367597656,38.69855522,190.75,190.7,7.14414069]
[1739367598249,5.2441,190.7,190.64,85.88468705]
[1739367598451,5.2441,190.7,190.63,7.14414069]
[1739367598452,38.69855522,190.67,190.63,7.14414069]
[1739367598652,38.69855522,190.67,190.62,5.06642572]
[1739367598855,5.2472,190.59,190.57,85.88468705]
[1739367599051,38.69855522,190.58,190.55,64.21776465]
[1739367599256,5.2487,190.53,190.52,170.69223136]
[1739367599552,43.94725522,190.53,190.52,64.29169653]
[1739367600056,43.94725522,190.53,190.51,5.84806952]
[1739367600651,38.69855522,190.64,190.51,5.84806952]
[1739367600956,0.03680014,190.54,190.51,0.03730659]
[1739367601153,0.03680014,190.54,190.4,38.69855522]
[1739367601351,38.69855522,190.7,190.5,38.69855522]
[1739367601654,38.69855522,190.71,190.51,3.26101857]
[1739367601857,38.69855522,190.63,190.51,3.2227]
[1739367602057,5.2475,190.58,190.42,43.95015522]
[1739367602250,0.03854541,190.62,190.46,38.69855522]
[1739367602450,0.03854541,190.62,190.54,38.69855522]
[1739367602651,80.12726966,190.61,190.51,38.69855522]
[1739367602956,0.03599059,190.6,190.55,38.69855522]
[1739367603249,72.24736025,190.61,190.52,3.2227]
[1739367603454,72.24736025,190.61,190.54,0.04003812]
[1739367604254,38.69855522,190.7,190.54,0.04003812]
[1739367604456,38.69855522,190.7,190.55,38.69855522]
[1739367604651,6.285e-05,190.59,190.54,0.04003812]
[1739367604858,133.56682609,190.74,190.64,5.2455]
[1739367605055,133.56682609,190.74,190.58,38.69855522]
[1739367605257,133.56682609,190.74,190.64,38.69855522]
[1739367605451,133.56682609,190.74,190.6,38.69855522]
[1739367605657,133.56682609,190.74,190.56,38.69855522]
[1739367605955,133.56682609,190.74,190.52,3.2227]
[1739367605956,133.56682609,190.77,190.6,38.69855522]
[1739367606158,133.56682609,190.77,190.64,38.69855522]
[1739367606357,133.56682609,190.77,190.68,38.69855522]
[1739367606755,128.62752609,190.77,190.69,2.9883]
[1739367607059,128.62752609,190.77,190.6,38.69855522]
[1739367607060,38.69855522,190.74,190.62,5.2461]
[1739367607259,38.69855522,190.74,190.56,38.69855522]
[1739367607660,43.94165522,190.74,190.56,38.69855522]
[1739367607856,38.69855522,190.8,190.6,38.69855522]
[1739367608153,38.69855522,190.71,190.52,3.2862]
[1739367608350,38.69855522,190.67,190.52,3.2862]
[1739367608549,38.69855522,190.7,190.3,38.69855522]
[1739367608550,38.69855522,190.63,190.43,38.69855522]
[1739367608754,5.2463,190.62,190.6,0.03899616]
[1739367608950,38.73414919,190.63,190.44,3.2862]
[1739367609159,38.69855522,190.6,190.44,3.2862]
[1739367609360,5.2475,190.58,190.44,3.2862]
[1739367609657,38.69855522,190.56,190.44,3.2862]
[1739367610051,38.69855522,190.6,190.44,41.98475522]
[1739367610260,5.2462,190.63,190.5,5.2496]
[1739367610451,0.03718603,190.52,190.48,0.03765513]
[1739367610957,38.69855522,190.52,190.36,38.69855522]
[1739367611158,107.99776616,190.7,190.31,6.1288]
[1739367611159,38.69855522,190.56,190.48,0.03327784]
[1739367611462,0.0357634,190.52,190.48,0.03327784]
[1739367611653,38.69855522,190.56,190.4,38.69855522]
[1739367612164,0.04005373,190.52,190.48,0.03496357]
[1739367612758,38.69855522,190.6,190.44,38.69855522]
[1739367613061,53.55921094,190.62,190.48,38.69855522]
[1739367613362,53.55921094,190.64,190.49,3.0376]
[1739367613565,53.55921094,190.64,190.52,38.69855522]
[1739367613757,53.55921094,190.64,190.49,9.5307]
[1739367614462,5.2469,190.6,190.49,14.7804]
[1739367614660,53.55921094,190.64,190.49,9.5307]
[1739367614861,0.0375387,190.58,190.55,0.03868048]
[1739367615062,38.73609392,190.58,190.55,0.03868048]
[1739367615261,0.0375387,190.58,190.55,0.03868048]
[1739367616359,38.69855522,190.7,190.55,0.03868048]
[1739367616561,38.69855522,190.67,190.55,0.03868048]
[1739367616766,38.69855522,190.63,190.47,6.0227]
[1739367616962,38.69855522,190.59,190.47,6.0227]
[1739367617163,38.69855522,190.67,190.47,6.0227]
[1739367617367,38.69855522,190.71,190.5,38.69855522]
[1739367617665,53.55921094,190.72,190.58,38.69855522]
[1739367617865,53.55921094,190.66,190.62,38.69855522]
[1739367618457,53.55921094,190.66,190.62,0.03649171]
[1739367618967,5.2457,190.64,190.62,0.03649171]
[1739367619363,53.55921094,190.66,190.62,0.03649171]
[1739367619765,5.246,190.63,190.62,0.03649171]
[1739367620167,53.55921094,190.66,190.62,0.03649171]
[1739367620462,53.55921094,190.7,190.61,38.69855522]
[1739367620665,53.55921094,190.7,190.65,38.69855522]
[1739367620868,53.55921094,190.7,190.61,38.69855522]
[1739367620869,53.55921094,190.7,190.69,38.69855522]
[1739367621061,80.31376732,190.72,190.69,38.65872276]
[1739367621062,48.61561094,190.72,190.69,38.65872276]
[1739367621357,48.61561094,190.72,190.62,9.0111]
[1739367621559,48.61561094,190.72,190.7,38.69855522]
[1739367621867,62.98699971,190.73,190.71,5.2436]
[1739367622060,77.39711044,190.72,190.47,38.69855522]
[1739367622258,38.69855522,190.58,190.4,38.69855522]
[1739367622464,38.69855522,190.54,190.35,38.69855522]
[1739367622963,38.69855522,190.6,190.39,38.69855522]
[1739367623158,38.69855522,190.56,190.35,38.69855522]
[1739367623360,0.03755663,190.46,190.43,0.03467221]
[1739367623766,38.69855522,190.47,190.26,38.69855522]
[1739367624062,43.95045522,190.42,190.28,5.2556]
[1739367624269,38.69855522,190.38,190.2,38.72545522]
[1739367624463,38.69855522,190.34,190.2,38.72545522]
[1739367624668,38.69855522,190.3,190.2,0.0269]
[1739367624968,0.03980327,190.29,190.25,0.038974]
[1739367625365,38.69855522,190.3,190.2,0.0269]
[1739367625565,38.69855522,190.26,190.2,0.0269]
[1739367626759,2.9764,190.28,190.2,0.0269]
[1739367627163,38.69855522,190.38,190.21,0.03939596]
[1739367627370,2.9999,190.39,190.24,38.69855522]
[1739367627562,38.69855522,190.45,190.28,38.69855522]
[1739367627762,12.2494,190.49,190.35,38.69855522]
[1739367627962,38.69855522,190.57,190.39,38.69855522]
[1739367628166,38.69855522,190.51,190.35,38.69855522]
[1739367628366,38.69855522,190.51,190.38,5.2527]
[1739367628572,0.03481486,190.5,190.46,0.03502625]
[1739367629074,44.66655522,190.6,190.44,38.69855522]
[1739367629367,9.533e-05,190.5,190.49,5.2499]
[1739367629771,38.69855522,190.67,190.47,38.69855522]